Workbook

Sheet Sheet1
D7: Cacul Efficacité et puissance comp attendu selon Green 2007
D8: Puissance Equ | F8: 9.1 | G8: kW
D9: Efficacité Carnot | F9: =15.5*F8^0.23/100 -> 0.2575794541
D10: Carnot | F10: =(300-4.5)/4.5 -> 65.66666667 | G10: W/W | I10: 9 | J10: kW
D11: Puissance comp. | F11: =F10/F9*F8 -> 2319.931412 | G11: kW | I11: =I10*I12/I13 -> 0.2274595843
I12: 65.66
I13: 2598 | J13: kW
J15: Solution ESS
D17: Price According Grren 2007
D19: Price = 2,6*(PowerEq@4,55)^0.63 | H19: Cost Barebone | J19: =2.6*(F8)^0.63*1.12 -> 11.70543204 | L19: =1-SUM(L20:L24) -> 0.73
D20: =2.6*F8^0.63 -> 10.45127861 | E20: M US in 2007 | H20: Control System | J20: =L20*$J$26 -> 0.8017419204 | L20: 0.05
C21: 0.6812957924 | D21: 0.12 | E21: Cumulative inflation | H21: Machine Monitoring System | J21: =L21*$J$26 -> 0 | K21: 1
B22: =D22-C22 -> 0.0006262180995 | C22: =2.6*F8^C21 -> 11.70480582 | D22: =D20*(D21+1) -> 11.70543204 | E22: M US in 2015 | H22: Test Tools | J22: =L22*$J$26 -> 1.443135457 | K22: 1 | L22: 0.09
E23: 11.9 | H23: Capital Spares | J23: =L23*$J$26 -> 0.4810451523 | K23: 1 | L23: 0.03
H24: Under Vacuum compress | J24: =L24*$J$26 -> 1.603483841 | K24: 1 | L24: 0.1
E25: =E23/0.8 -> 14.875
H26: Total Price | J26: =J19/L19 -> 16.03483841
J32: =12/0.75 -> 16

Sheet Exergie
B2: EXERGIE
B4: DTC TARGET
B6: Twarm reference | D6: 300 | H6: P = m*ΔH
B7: Tcold Reference | D7: 4.5 | H7: E = m(ΔH - TΔS)
B8: Equivalence [Watt]/ [Watt | D8: =+(D6-D7)/D7 -> 65.66666667 | H8: Peq@4,5K = E / 65,67
D10: Equivalent Power at 4,5K | E10: Tin [K] | F10: Tout [K] | G10: flow [g/s] | H10: Hin [J/g] | I10: Hout [J/g] | J10: ΔH | K10: Sin [J/g.K] | L10: Sout [J/g.K] | M10: ΔS | N10: TrefΔS | O10: Pin [bara] | P10: Pout [bara] | Q10: Exergy [Watt] | R10: Power [W] | T10: Tmoy | U10: Tbar
A11: =D11/$D$14 -> 0.7645067682 | B11: Refrigeration @ 4,3/4,5K | D11: =Q11/D$60 -> 6998.323007 | E11: 4.5 | F11: 4.6 | G11: =R11/J11 -> 111.8761014 | H11: =[6]!h_(10,O11,E11) -> 11.78063428 | I11: 39.04293571 | J11: =I11-H11 -> 27.26230143 | K11: =[6]!S_(10,O11,E11) -> 3.621155924 | L11: 17.40445543 | M11: =L11-K11 -> 13.78329951 | N11: =M11*$D$58 -> 4134.989853 | O11: 3 | P11: 0.027 | Q11: =G11*((H11-I11)-$D$58*(K11-L11)) -> 459556.5441 | R11: 3050 | T11: =(F11-E11)/LN(F11/E11) -> 4.549816844 | U11: =T11*Q11/$Q$66 -> 3.314039716
A12: =D12/$D$14 -> 0.1015505475 | B12: Liquefaction | D12: =Q12/D$60 -> 929.597438 | E12: 4.5 | F12: 300 | G12: 9 | H12: 11.83610382 | I12: 1573.546862 | J12: =I12-H12 -> 1561.710758 | K12: 3.599291938 | L12: 31.41372228 | M12: =L12-K12 -> 27.81443034 | N12: =M12*$D$58 -> 8344.329102 | O12: 3.2 | P12: 1.1 | Q12: =G12*((H12-I12)-$D$58*(K12-L12)) -> 61043.5651 | R12: =+(I12-H12)*G12 -> 14055.39682 | S12: =R12/G12 -> 1561.710758 | T12: =(F12-E12)/LN(F12/E12) -> 70.36208365 | U12: =T12*Q12/$Q$66 -> 6.807747216
A13: =D13/$D$14 -> 0.1339426843 | B13: ThermalShields | D13: =Q13/D$60 -> 1226.116247 | E13: 35 | F13: 50 | G13: =R13/J13 -> 143.4497722 | H13: 196.4170259 | I13: 276.5844589 | J13: =I13-H13 -> 80.167433 | K13: 14.70121542 | L13: 16.83936141 | M13: =L13-K13 -> 2.138145998 | N13: =M13*$D$58 -> 641.4437993 | O13: 15.2 | P13: 13.66 | Q13: =G13*((H13-I13)-$D$58*(K13-L13)) -> 80514.96687 | R13: 11500 | T13: =(F13-E13)/LN(F13/E13) -> 42.05509878 | U13: =T13*Q13/$Q$66 -> 5.366858138
B14: Total Power @4.5K | D14: =SUM(D11:D13) -> 9154.036691 | Q14: =SUM(Q11:Q13) -> 601115.0761 | U14: =SUM(U11:U13) -> 15.48864507
B15: Carnot | D15: =(300-4.5)/4.5 -> 65.66666667
B16: Cold Box | D16: =(-0.004132783*U14 + 0.5866340621) -> 0.5226228531
B17: Comp efficiency | D17: 0.55
B18: Carnot efficiency | D18: =D17*D16 -> 0.2874425692
B19: Carnot efficiency (Green) | D19: =15.5*(D14/1000)^0.23/100 -> 0.257930445 | V19: 300 | W19: 300
B20: Efficiency W/W | D20: =D15/D19 -> 254.5905997 | E20: W/W | G20: 2598000 | H20: =D13/G20*D14 -> 4.320212899 | R20: =11900*0.95 -> 11305 | V20: 4.5 | W20: 15
B21: Power comp | D21: =D20*D14 -> 2330531.691 | E21: kW | G21: 2598000 | H21: =D14/G21*D15 -> 0.2313760878 | V21: =(V19-V20)/V20 -> 65.66666667 | W21: =(W19-W20)/W20 -> 19
B22: Cost Barebone | D22: =2.6*(D14/1000)^0.65 -> 10.96532655 | F22: =1-SUM(F23:F27) -> 0.86 | G22: 2.6∗(Power)^0.68 | V22: =W22*W21/V21 -> 10.63324873 | W22: =35*1.05 -> 36.75 | X22: kW | Y22: =W22*1.05 -> 38.5875
B23: Test Tools | D23: =F23*$D$28 -> 0.1912556957 | E23: 1 | F23: 0.015 | V23: =15.5*(V22)^0.23/100 -> 0.2669714818
B24: Machine Monitoring System | D24: =F24*$D$28 -> 0.1912556957 | E24: 1 | F24: 0.015 | V24: =V21*V22/V23 -> 2615.447895
B25: Heat Recovery System | D25: =F25*$D$28 -> 0 | E25: 1 | L25: =[6]!h_(11,1,300) -> 4201.011201
B26: Test Tools | D26: =F26*$D$28 -> 1.147534174 | E26: 1 | F26: 0.09
B27: Capital Spares | D27: =F27*$D$28 -> 0.2550075943 | E27: 1 | F27: 0.02
B28: Total Price | D28: =D22/F22 -> 12.75037971
B30: SLAC
B32: Twarm reference | D32: 300 | H32: P = m*ΔH
B33: Tcold Reference | D33: 4.5 | H33: E = m(ΔH - TΔS)
B34: Equivalence [Watt]/ [Watt | D34: =+(D32-D33)/D33 -> 65.66666667 | H34: Peq@4,5K = E / 65,67
D36: Equivalent Power at 4,5K | E36: Tin [K] | F36: Tout [K] | G36: flow [g/s] | H36: Hin [J/g] | I36: Hout [J/g] | J36: ΔH | K36: Sin [J/g.K] | L36: Sout [J/g.K] | M36: ΔS | N36: TrefΔS | O36: Pin [bara] | P36: Pout [bara] | Q36: Exergy [Watt] | R36: Power [W] | T36: Tmoy | U36: Tbar
B37: Refrigeration @ 4,3/4,5K | D37: =Q37/D$60 -> 10457.74327 | E37: 4.55 | F37: 35 | G37: 145.5 | H37: =[6]!h_(10,O37,E37) -> 12.06639157 | I37: =[6]!h_(10,P37,F37) -> 196.9560103 | J37: =I37-H37 -> 184.8896187 | K37: =[6]!S_(10,O37,E37) -> 3.650183516 | L37: 19.99901699 | M37: =L37-K37 -> 16.34883347 | N37: =M37*$D$58 -> 4904.650041 | O37: 3.2 | P37: 1.24 | Q37: =G37*((H37-I37)-$D$58*(K37-L37)) -> 686725.1414 | R37: =+(I37-H37)*G37 -> 26901.43953 | T37: =(F37-E37)/LN(F37/E37) -> 14.92485498 | U37: =T37*Q37/$Q$66 -> 16.24493236
B38: Liquefaction | D38: =Q38/D$60 -> 1545.894173 | E38: 4.55 | F38: 300 | G38: 15 | H38: 12.06639157 | I38: 1573.546862 | J38: =I38-H38 -> 1561.48047 | K38: 3.650183516 | L38: 31.41372228 | M38: =L38-K38 -> 27.76353876 | N38: =M38*$D$58 -> 8329.061629 | O38: 3.2 | P38: 1.1 | Q38: =G38*((H38-I38)-$D$58*(K38-L38)) -> 101513.7174 | R38: =+(I38-H38)*G38 -> 23422.20705 | S38: =R38/G38 -> 1561.48047 | T38: =(F38-E38)/LN(F38/E38) -> 70.53576457 | U38: =T38*Q38/$Q$66 -> 11.34903538
B39: Cold Intercept | D39: =Q39/D$60 -> 1205.640206 | E39: 5.43 | F39: 7.5 | G39: 40.59 | H39: 19.08478438 | I39: 51.00354663 | J39: =I39-H39 -> 31.91876225 | K39: 5.066929215 | L39: 11.67495714 | M39: =L39-K39 -> 6.608027928 | N39: =M39*$D$58 -> 1982.408378 | O39: 3 | P39: 1.28 | Q39: =G39*((H39-I39)-$D$58*(K39-L39)) -> 79170.37352 | R39: =+(I39-H39)*G39 -> 1295.58256 | T39: =(F39-E39)/LN(F39/E39) -> 6.40938534 | U39: =T39*Q39/$Q$66 -> 0.8042737907
B40: ThermalShields | D40: =Q40/D$60 -> 1806.1887 | E40: 35 | F40: 55 | G40: 145.5 | H40: 196.8310876 | I40: 301.2699873 | J40: =I40-H40 -> 104.4388996 | K40: 17.8278528 | L40: 20.89319647 | M40: =L40-K40 -> 3.06534367 | N40: =M40*$D$58 -> 919.6031009 | O40: 3.5 | P40: 2.5 | Q40: =G40*((H40-I40)-$D$58*(K40-L40)) -> 118606.3913 | R40: =+(I40-H40)*G40 -> 15195.8599 | T40: =(F40-E40)/LN(F40/E40) -> 44.24924394 | U40: =T40*Q40/$Q$66 -> 8.318380589
B41: Total Power @4.5K | D41: =SUM(D37:D40) -> 15015.46635 | Q41: =SUM(Q37:Q40) -> 986015.6236 | U41: =SUM(U37:U40) -> 36.71662211
B42: Carnot | D42: =(300-4.5)/4.5 -> 65.66666667
B43: Cold Box | D43: =(-0.004132783*U41 + 0.5866340621) -> 0.4348922304
B44: Comp efficiency | D44: 0.55
B45: Efficiency W/W | D45: =D42/D43/D44 -> 274.5368416 | E45: W/W
B46: Power comp | D46: =D45*D41 -> 4122298.707 | E46: kW
B47: Cost Barebone | D47: =2.6*(D41/1000)^0.68 -> 16.40664379 | F47: =1-SUM(F48:F52) -> 0.86 | G47: 2.6∗(Power)^0.68
B48: Test Tools | D48: =F78*$D$143 -> 0 | E48: 1 | F48: 0.015
B49: Machine Monitoring System | D49: =F49*$D$143 -> 0.4477389256 | E49: 1 | F49: 0.015
B50: Heat Recovery System | D50: =F50*$D$143 -> 0 | E50: 1
B51: Test Tools | D51: =F51*$D$143 -> 2.686433554 | E51: 1 | F51: 0.09
B52: Capital Spares | D52: =F52*$D$143 -> 0.5969852342 | E52: 1 | F52: 0.02
B53: Total Price | D53: =D47/F47 -> 19.07749278
B56: Stage 2 : ESS with margins
B58: Twarm reference | D58: 300 | H58: P = m*ΔH
B59: Tcold Reference | D59: 4.5 | H59: E = m(ΔH - TΔS)
B60: Equivalence [Watt]/ [Watt | D60: =+(D58-D59)/D59 -> 65.66666667 | H60: Peq@4,5K = E / 65,67
O61: =[6]!T_sat(10,O63) -> 0 | P61: =[6]!T_sat(10,P63) -> 1.950946164
D62: Equivalent Power at 4,5K | E62: Tin [K] | F62: Tout [K] | G62: flow [g/s] | H62: Hin [J/g] | I62: Hout [J/g] | J62: ΔH | K62: Sin [J/g.K] | L62: Sout [J/g.K] | M62: ΔS | N62: TrefΔS | O62: Pin [bara] | P62: Pout [bara] | Q62: Exergy [Watt] | R62: Power [W] | T62: Tmoy | U62: Tbar
A63: =D63/$D$66 -> 0.7649285909 | B63: Refrigeration @ 4,3/4,5K | D63: =Q63/D$60 -> 7349.386423 | E63: 4.5 | F63: 4.6 | G63: =R63/J63 -> 117.4882468 | H63: =[6]!h_(10,O63,E63) -> 11.78063428 | I63: 39.04293571 | J63: =I63-H63 -> 27.26230143 | K63: =[6]!S_(10,O63,E63) -> 3.621155924 | L63: 17.40445543 | M63: =L63-K63 -> 13.78329951 | N63: =M63*$D$58 -> 4134.989853 | O63: 3 | P63: 0.027 | Q63: =G63*((H63-I63)-$D$58*(K63-L63)) -> 482609.7084 | R63: 3203 | S63: 3050 | T63: =(F63-E63)/LN(F63/E63) -> 4.549816844 | U63: =T63*Q63/$Q$66 -> 3.480284987 | V63: =R63/S63 -> 1.050163934
A64: =D64/$D$66 -> 0.1024653585 | B64: Liquefaction | D64: =Q64/D$60 -> 984.4808044 | E64: 4.5 | F64: 300 | G64: 9.5 | H64: 11.78063428 | I64: 1573.530711 | J64: =I64-H64 -> 1561.750077 | K64: 3.621155924 | L64: 31.5103484 | M64: =L64-K64 -> 27.88919247 | N64: =M64*$D$58 -> 8366.757742 | O64: 3 | P64: 1.05 | Q64: =G64*((H64-I64)-$D$58*(K64-L64)) -> 64647.57282 | R64: =+(I64-H64)*G64 -> 14836.62573 | S64: 14055.39682 | T64: =(F64-E64)/LN(F64/E64) -> 70.36208365 | U64: =T64*Q64/$Q$66 -> 7.209676125 | V64: =R64/S64 -> 1.055582131
A65: =D65/$D$66 -> 0.1326060506 | B65: ThermalShields | D65: =Q65/D$60 -> 1274.070703 | E65: 36.5 | F65: 49.5 | G65: =R65/J65 -> 171.5077674 | H65: 204.552507 | I65: 273.9371196 | J65: =I65-H65 -> 69.3846126 | K65: 14.92881771 | L65: 16.7861481 | M65: =L65-K65 -> 1.857330383 | N65: =M65*$D$58 -> 557.1991148 | O65: 15.2 | P65: 13.66 | Q65: =G65*((H65-I65)-$D$58*(K65-L65)) -> 83663.97619 | R65: 11900 | S65: 11300 | T65: =(F65-E65)/LN(F65/E65) -> 42.67046067 | U65: =T65*Q65/$Q$66 -> 5.658361267 | V65: =R65/S65 -> 1.053097345
A66: =SUM(A63:A65) -> 1 | B66: Total Power @4.5K | D66: =SUM(D63:D65) -> 9607.937931 | Q66: =SUM(Q63:Q65) -> 630921.2575 | U66: =SUM(U63:U65) -> 16.34832238
B67: Carnot | D67: =(300-4.5)/4.5 -> 65.66666667
B68: Cold Box | D68: =(-0.004132783*U66 + 0.5866340621) -> 0.5190699933
B69: Comp efficiency | D69: 0.55
B70: Efficiency W/W | D70: =D67/D68/D69 -> 230.0151057 | E70: W/W
B71: Power comp | D71: =D70*D66 -> 2209970.859 | E71: kW
B72: Cost Barebone | D72: =2.6*(D66/1000)^0.68 -> 12.11049449 | F72: =1-SUM(F73:F77) -> 0.86 | G72: 2.6∗(Power)^0.68
B73: Test Tools | D73: =F103*$D$143 -> 0.5969852342 | E73: 1 | F73: 0.015
B74: Machine Monitoring System | D74: =F74*$D$143 -> 0.4477389256 | E74: 1 | F74: 0.015
B75: Heat Recovery System | D75: =F75*$D$143 -> 0 | E75: 1
B76: Test Tools | D76: =F76*$D$143 -> 2.686433554 | E76: 1 | F76: 0.09
B77: Capital Spares | D77: =F77*$D$143 -> 0.5969852342 | E77: 1 | F77: 0.02
B78: Total Price | D78: =D72/F72 -> 14.08197033
B80: KSTAR
B82: Twarm reference | D82: 300 | H82: P = m*ΔH
B83: Tcold Reference | D83: 4.5 | H83: E = m(ΔH - TΔS)
D86: Equivalent Power at 4,5K | E86: Tin [K] | F86: Tout [K] | G86: flow [g/s] | H86: Hin [J/g] | I86: Hout [J/g] | J86: ΔH | K86: Sin [J/g.K] | L86: Sout [J/g.K] | M86: ΔS | N86: TrefΔS | O86: Pin [bara] | P86: Pout [bara] | Q86: Exergy [Watt] | R86: Power [W] | T86: Tmoy | U86: Tbar
B87: Refrigeration @ 4,3/4,5K | D87: =Q87/D$60 -> 6023.08814 | E87: 4.3 | F87: 4.31 | G87: 261.7107146 | H87: =[6]!h_(10,O87,E87) -> 10.89889198 | I87: 31.18304902 | J87: =I87-H87 -> 20.28415704 | K87: =[6]!S_(10,O87,E87) -> 3.420803804 | L87: 8.525991581 | M87: =L87-K87 -> 5.105187777 | N87: =M87*D82 -> 1531.556333 | O87: 3 | P87: 1.05 | Q87: =G87*((H87-I87)-$D$82*(K87-L87)) -> 395516.1212 | R87: =+(I87-H87)*G87 -> 5308.581236 | T87: =(F87-E87)/LN(F87/E87) -> 4.304998064 | U87: =T87*Q87/$Q$91 -> 2.664883311
B88: Liquefaction | D88: =Q88/D$60 -> 1895.548196 | E88: 4.5 | F88: 315 | G88: 18.2966461 | H88: 11.78063428 | I88: 1651.425399 | J88: =I88-H88 -> 1639.644765 | K88: 3.621155924 | L88: 31.76371471 | M88: =L88-K88 -> 28.14255878 | N88: =M88*D81 -> 0 | O88: 3 | P88: 1.05 | Q88: =G88*((H88-I88)-$D$82*(K88-L88)) -> 124474.3316 | R88: =+(I88-H88)*G88 -> 30000 | T88: =(F88-E88)/LN(F88/E88) -> 73.08469995 | U88: =T88*Q88/$Q$91 -> 14.23794522
B89: SC BUS | D89: =Q89/D$60 -> 237.4791472 | E89: 4.3 | F89: 4.4 | G89: 9.968032011 | H89: 10.89889198 | I89: 31.96624006 | J89: =I89-H89 -> 21.06734808 | K89: 3.420803804 | L89: 8.705853712 | M89: =L89-K89 -> 5.285049908 | N89: =M89*D82 -> 1585.514972 | O89: 3 | P89: 1.05 | Q89: =G89*((H89-I89)-$D$82*(K89-L89)) -> 15594.464 | R89: =+(I89-H89)*G89 -> 210 | T89: =(F89-E89)/LN(F89/E89) -> 4.349808422 | U89: =T89*Q89/$Q$91 -> 0.1061650647
B90: ThermalShields | D90: =Q90/D$60 -> 1573.910095 | E90: 55 | F90: 70 | G90: 280.0329779 | H90: 303.2451103 | I90: 381.807286 | J90: =I90-H90 -> 78.56217567 | K90: 17.11797717 | L90: 18.61010416 | M90: =L90-K90 -> 1.492126993 | N90: =M90*D82 -> 447.6380979 | O90: 15.2 | P90: 13.66 | Q90: =G90*((H90-I90)-$D$82*(K90-L90)) -> 103353.4296 | R90: =+(I90-H90)*G90 -> 22000 | T90: =(F90-E90)/LN(F90/E90) -> 62.19883923 | U90: =T90*Q90/$Q$91 -> 10.06116378
B91: Total Power @4.5K | D91: =SUM(D87:D90) -> 9730.025579 | Q91: =SUM(Q87:Q90) -> 638938.3463 | U91: =SUM(U87:U90) -> 27.07015738
B92: Carnot | D92: =(300-4.5)/4.5 -> 65.66666667
B93: Barycentrique Temp | D93: =U91 -> 27.07015738 | E93: K
B94: Efficiency | D94: =-0.004132783*D93 + 0.5866340621 -> 0.4747589759
B95: Comp efficiency | D95: 0.55
B96: Efficiency W/W | D96: =D92/D94/D95 -> 251.4832693 | E96: W/W
B97: Power comp | D97: =D96*D91 -> 2446938.643 | E97: kW
B98: Cost Barebone | D98: =2.6*(D91/1000)^0.68 -> 12.21492643 | F98: =1-SUM(F99:F103) -> 0.86 | G98: 2.6∗(Power)^0.68
B99: Test Tools | D99: =F140*$D$143 -> 0 | E99: 1 | F99: 0.015
B100: Machine Monitoring System | D100: =F100*$D$143 -> 0.4477389256 | E100: 1 | F100: 0.015
B101: Heat Recovery System | D101: =F101*$D$143 -> 0 | E101: 1
B102: Test Tools | D102: =F102*$D$143 -> 2.686433554 | E102: 1 | F102: 0.09
B103: Capital Spares | D103: =F103*$D$143 -> 0.5969852342 | E103: 1 | F103: 0.02
B104: Total Price | D104: =D98/F98 -> 14.20340283
B107: ITER
B109: Twarm reference | D109: 300 | H109: P = m*ΔH
B110: Tcold Reference | D110: 4.5 | H110: E = m(ΔH - TΔS)
B111: Equivalence [Watt]/ [Watt | D111: =+(D109-D110)/D110 -> 65.66666667 | H111: Peq@4,5K = E / 65,67
D113: Equivalent Power at 4,5K | E113: Tin [K] | F113: Tout [K] | G113: flow [g/s] | H113: Hin [J/g] | I113: Hout [J/g] | J113: ΔH | K113: Sin [J/g.K] | L113: Sout [J/g.K] | M113: ΔS | N113: TrefΔS | O113: Pin [bara] | P113: Pout [bara] | Q113: Exergy [Watt] | R113: Power [W] | T113: Tmoy | U113: Tbar
B114: magnet 10->12 | D114: =Q114/D$111 -> 55846.83692 | E114: 4.55 | F114: 5 | G114: 2187.426459 | H114: =[6]!h_(10,O114,E114) -> 12.67331493 | I114: 35.30264713 | J114: =I114-H114 -> 22.6293322 | K114: =[6]!S_(10,O114,E114) -> 3.486073991 | L114: 9.149922498 | M114: =L114-K114 -> 5.663848507 | N114: =M114*$D$109 -> 1699.154552 | O114: 5 | P114: 1.25 | Q114: =G114*((H114-I114)-$D$109*(K114-L114)) -> 3667275.625 | R114: =+(I114-H114)*G114 -> 49500 | T114: =(F114-E114)/LN(F114/E114) -> 4.771463874 | U114: =T114*Q114/$Q$118 -> 3.634060935
B115: Current Leads 20->22 | D115: =Q115/D$111 -> 4405.734882 | E115: 50.4 | F115: 300 | G115: 145 | H115: 277.5217726 | I115: 1573.805273 | J115: =I115-H115 -> 1296.283501 | K115: 19.30678284 | L115: 30.27853069 | M115: =L115-K115 -> 10.97174785 | N115: =M115*$D$109 -> 3291.524355 | O115: 4.3 | P115: 1.9 | Q115: =G115*((H115-I115)-$D$109*(K115-L115)) -> 289309.9239 | R115: =+(I115-H115)*G115 -> 187961.1076 | T115: =(F115-E115)/LN(F115/E115) -> 139.9266832 | U115: =T115*Q115/$Q$118 -> 8.407384004
B116: Cooling loop 30->32 | D116: =Q116/D$111 -> 7408.847827 | E116: 4.55 | F116: 5.3 | G116: 270.1214462 | H116: 12.67331493 | I116: 37.47697304 | J116: =I116-H116 -> 24.80365811 | K116: 3.486073991 | L116: 9.57240229 | M116: =L116-K116 -> 6.086328299 | N116: 1825.89849 | O116: 5 | P116: 1.25 | Q116: =G116*((H116-I116)-$D$109*(K116-L116)) -> 486514.3406 | R116: =+(I116-H116)*G116 -> 6700 | T116: 4.915467474 | U116: =T116*Q116/$Q$118 -> 0.4966580582
B117: Cool down 50 -> | D117: =Q117/D$111 -> 5664.583865 | E117: 4.55 | F117: 300 | G117: 55 | H117: 12.67331493 | I117: 1573.579163 | J117: =I117-H117 -> 1560.905848 | K117: 3.486073991 | L117: 31.23299291 | M117: =L117-K117 -> 27.74691892 | N117: 8324.075675 | O117: 5 | P117: 1.2 | Q117: =G117*((H117-I117)-$D$109*(K117-L117)) -> 371974.3405 | R117: =+(I117-H117)*G117 -> 85849.82165 | T117: 70.53576457 | U117: =T117*Q117/$Q$118 -> 5.449032196
Q118: =SUM(Q114:Q117) -> 4815074.23 | U118: =SUM(U114:U117) -> 17.98713519
W119: Compress
B120: Cryopump 100K-470K regen | D120: =Q120/D$111 -> 1221.226949 | E120: 300 | F120: 300 | G120: 100 | H120: =[6]!h_(10,O120,E120) -> 1579.00614 | I120: 1574.806641 | J120: =I120-H120 -> -4.199498677 | K120: =[6]!S_(10,O120,E120) -> 25.60990626 | L120: 28.26903803 | M120: =L120-K120 -> 2.65913177 | N120: 797.7395309 | O120: 18 | P120: 5 | Q120: =G120*((H120-I120)-$D$109*(K120-L120)) -> 80193.90296 | R120: =+(I120-H120)*G120 -> -419.9498677 | T120: =(F120-E120)/LN(F120/E120) ->  | U120: =T120*Q120/$Q$118 ->  | W120: =G120*8.314*E120*LN(O120/P120)/4/D131 -> 169941.7658
B121: Cryopump 120K regen | D121: =Q121/D$111 -> 3350.326347 | E121: 300 | F121: 301 | G121: 130 | H121: 1579.00614 | I121: 1578.772133 | J121: =I121-H121 -> -0.2340063739 | K121: 25.60990626 | L121: 31.25027402 | M121: =L121-K121 -> 5.640367759 | N121: 1692.110328 | O121: 18 | P121: 1.2 | Q121: =G121*((H121-I121)-$D$109*(K121-L121)) -> 220004.7634 | R121: =+(I121-H121)*G121 -> -30.4208286 | T121: =(F121-E121)/LN(F121/E121) -> 300.4997227 | U121: =T121*Q121/$Q$118 -> 13.73008333 | W121: =G121*8.314*E121*LN(O121/P121)/4/D134 -> 702.3146964
B122: 80K loop make-up | D122: =Q122/D$111 -> 0 | E122: 300 | F122: 301 | G122: 0 | H122: 1579.00614 | I122: 1578.78828 | J122: =I122-H122 -> -0.2178595233 | K122: 25.60990626 | L122: 31.16548396 | M122: =L122-K122 -> 5.555577696 | N122: 1666.673309 | O122: 18 | P122: 1.25 | Q122: =G122*((H122-I122)-$D$109*(K122-L122)) -> 0 | R122: =+(I122-H122)*G122 -> 0 | T122: 300.4997227 | U122: =T122*Q122/$Q$118 -> 0
W123: =W120+W121 -> 170644.0805
B125: Total Power @4.5K | D125: =SUM(D114:D118) -> 73326.0035 | E125: =D125/3 -> 24442.00117
B126: Carnot | D126: =(300-4.5)/4.5 -> 65.66666667
B127: Barycentrique Temp | D127: =U118 -> 17.98713519 | E127: K
B128: Efficiency | D128: 0.447
B129: Ideal Power | D129: =D125*(D126/D128)/1000 -> 10771.97814 | E129: kW
B130: Add power for 300K | D130: =W123/1000 -> 170.6440805 | E130: kW
B131: Comp efficiency | D131: 0.47 | E131: =D131*D128 -> 0.21009 | F131: =44.7%*47% -> 0.21009
B132: Total Compress power | D132: =(D129+D130)/D131 -> 23282.17494 | S132: 23.5 | T132: =1-(SUM(T134:T139)) -> 0.76 | U132: =S132*3 -> 70.5
B134: Efficiency W/W | D134: =D126/D128/D131 -> 312.5644565 | E134: W/W | F134: Nota : LN2 NOT CONSIDERED ! Case average fortement liquefacteur | S134: =$S$132*T134 -> 1.175 | T134: 0.05 | U134: =S134*3 -> 3.525
B135: Power comp | D135: =D136*D134 -> 7639700.81 | E135: kW | S135: =$S$132*T135 -> 0.3525 | T135: 0.015 | U135: =S135*3 -> 1.0575
B136: Equivalent power for one plant | D136: =E125 -> 24442.00117 | E136: kW
B137: Cost Barebone | D137: =2.6*(D136/1000)^P137 -> 22.6854389 | E137: =1-SUM(E138:E142) -> 0.76 | G137: 2.6∗(Power)^x | O137: x = | P137: 0.677724173 | S137: =$S$132*T137 -> 1.5275 | T137: 0.065 | U137: =S137*3 -> 4.5825
B138: Control Syst. (PLC & PIS) | D138: =E138*$D$143 -> 1.492463085 | E138: 0.05 | S138: =$S$132*T138 -> 2.115 | T138: 0.09
B139: Machine Monitoring System | D139: =E139*$D$143 -> 0.4477389256 | E139: 0.015 | S139: =$S$132*T139 -> 0.47 | T139: 0.02
B140: Heat Recovery System | D140: =E140*$D$143 -> 1.940202011 | E140: 0.065 | S140: =SUM(S132:S139) -> 29.14
B141: Test Tools | D141: =E141*$D$143 -> 2.686433554 | E141: 0.09 | S141: =S140*3 -> 87.42 | U141: =SUM(U132:U140)+S139+S138 -> 82.25
B142: Capital Spares | D142: =E142*$D$143 -> 0.5969852342 | E142: 0.02 | S142: =S132/T132 -> 30.92105263 | U142: 82.8
B143: Total Price one plant | D143: =D137/E137 -> 29.84926171 | F143: =83/3 -> 27.66666667 | S143: =S142*3 -> 92.76315789
B144: For 3 trains | D144: =SUM(D137:D140)*3+D141+D142 -> 82.98094755 | E144: (only one test tools and one set of capital spares)
B147: Stage 2 : ESS TMCP
B149: Twarm reference | D149: 300 | H149: P = m*ΔH
B150: Tcold Reference | D150: 4.5 | H150: E = m(ΔH - TΔS)
B151: Equivalence [Watt]/ [Watt | D151: =+(D149-D150)/D150 -> 65.66666667 | H151: Peq@4,5K = E / 65,67
D153: Equivalent Power at 4,5K | E153: Tin [K] | F153: Tout [K] | G153: flow [g/s] | H153: Hin [J/g] | I153: Hout [J/g] | J153: ΔH | K153: Sin [J/g.K] | L153: Sout [J/g.K] | M153: ΔS | N153: TrefΔS | O153: Pin [bara] | P153: Pout [bara] | Q153: Exergy [Watt] | R153: Power [W] | T153: Tmoy | U153: Tbar
B154: Refrigeration | D154: =Q154/D$60 -> 8694.788126 | E154: 15 | F154: 21 | G154: 925.3377704 | H154: =[6]!h_(10,O154,E154) -> 79.16066645 | I154: =[6]!h_(10,P154,F154) -> 116.9846926 | J154: =I154-H154 -> 37.82402612 | K154: =[6]!S_(10,O154,E154) -> 9.182958408 | L154: =[6]!S_(10,P154,F154) -> 11.36579287 | M154: =L154-K154 -> 2.182834467 | N154: =M154*$D$58 -> 654.85034 | O154: 19 | P154: 18.5 | Q154: =G154*((H154-I154)-$D$149*(K154-L154)) -> 570957.7536 | R154: =+(I154-H154)*G154 -> 35000 | T154: =(F154-E154)/LN(F154/E154) -> 17.83208047 | U154: =T154*Q154/$Q$157 -> 17.83208047
B155: Liquefaction
B156: ThermalShields
B157: Total Power @4.5K | D157: =SUM(D154:D156) -> 8694.788126 | Q157: =SUM(Q154:Q156) -> 570957.7536 | U157: =SUM(U154:U156) -> 17.83208047
B158: Carnot | D158: =(300-4.5)/4.5 -> 65.66666667
B159: Barycentrique Temp | D159: =U157 -> 17.83208047 | E159: K
B160: Efficiency | D160: =(-0.004132783*D159 + 0.5866340621)*0.95 -> 0.4872910459
B161: Comp efficiency | D161: 0.5
B162: Efficiency W/W | D162: =D158/D160/D161 -> 269.5172309 | E162: W/W | R162: Hydrogen fluid parameters
B163: Power comp | D163: =D162*D157 -> 2343395.219 | E163: kW | R163: Pressure (MPa) | S163: Flow rate (kg/s) | T163: T(inlet) (K) | U163: T(outlet) (K)
B164: Cost Barebone | D164: =2.6*(D157/1000)^0.68 -> 11.31538852 | F164: =1-SUM(F165:F169) -> 0.86 | G164: 2.6∗(Power)^0.68 | R164: 1.5 | S164: 0.8 | T164: 17 | U164: 20 | V164: =S164*1000*([6]!h_(15,R164*10,U164)-[6]!h_(15,R164*10,T164)) -> 
B165: Test Tools | D165: =F165*$D$170 -> 0.1973614277 | E165: 1 | F165: 0.015
B166: Machine Monitoring System | D166: =F166*$D$170 -> 0.1973614277 | E166: 1 | F166: 0.015
B167: Heat Recovery System | D167: =F167*$D$170 -> 0 | E167: 1
B168: Test Tools | D168: =F168*$D$170 -> 1.184168566 | E168: 1 | F168: 0.09
B169: Capital Spares | D169: =F169*$D$170 -> 0.2631485703 | E169: 1 | F169: 0.02
B170: Total Price | D170: =D164/F164 -> 13.15742852
B172: HIAF1
B174: Twarm reference | D174: 300 | H174: P = m*ΔH
B175: Tcold Reference | D175: 4.4 | H175: E = m(ΔH - TΔS)
B176: Equivalence [Watt]/ [Watt | D176: =+(D174-D175)/D175 -> 67.18181818 | H176: Peq@4,5K = E / 65,67
D179: Equivalent Power at 4,5K | E179: Tin [K] | F179: Tout [K] | G179: flow [g/s] | H179: Hin [J/g] | I179: Hout [J/g] | J179: ΔH | K179: Sin [J/g.K] | L179: Sout [J/g.K] | M179: ΔS | N179: TrefΔS | O179: Pin [bara] | P179: Pout [bara] | Q179: Exergy [Watt] | R179: Power [W] | T179: Tmoy | U179: Tbar
B180: Refrigeration | D180: =Q180/$D$176 -> 2489.964793 | E180: 4.4 | F180: 4.5 | G180: 121.939153 | H180: =[6]!h_(10,O180,E180) -> 11.024112 | I180: =[6]!h_(10,P180,F180) -> 31.52614058 | J180: =I180-H180 -> 20.50202858 | K180: =[6]!S_(10,O180,E180) -> 3.772893277 | L180: =[6]!S_(10,P180,F180) -> 8.414015724 | M180: =L180-K180 -> 4.641122447 | N180: =M180*D174 -> 1392.336734 | O180: 1.2 | P180: 1.2 | Q180: =G180*((H180-I180)-$D$174*(K180-L180)) -> 167280.362 | R180: =+(I180-H180)*G180 -> 2500 | T180: =(F180-E180)/LN(F180/E180) -> 4.449812728 | U180: =T180*Q180/$Q$183 -> 3.744700748
B181: TS | D181: =Q181/$D$176 -> 468.8502827 | E181: 50 | F181: 80 | G181: 50.69573959 | H181: =[6]!h_(10,O181,E181) -> 277.1473361 | I181: =[6]!h_(10,P181,F181) -> 434.9515237 | J181: =I181-H181 -> 157.8041876 | K181: =[6]!S_(10,O181,E181) -> 16.25524389 | L181: =[6]!S_(10,P181,F181) -> 18.8523204 | M181: =L181-K181 -> 2.597076518 | N181: =M181*D175 -> 11.42713668 | O181: 18 | P181: 17 | Q181: =G181*((H181-I181)-$D$174*(K181-L181)) -> 31498.21445 | R181: =+(I181-H181)*G181 -> 8000 | T181: =(F181-E181)/LN(F181/E181) -> 63.82929436 | U181: =T181*Q181/$Q$183 -> 10.11431331
B183: Total Power @4.5K | D183: =SUM(D180:D181) -> 2958.815076 | Q183: =SUM(Q180:Q182) -> 198778.5765 | U183: =SUM(U180:U182) -> 13.85901406
B184: Carnot | D184: =(300-4.5)/4.5 -> 65.66666667
B185: Barycentrique Temp | D185: =U183 -> 13.85901406 | E185: K
B186: Efficiency | D186: =(-0.004132783*D185 + 0.5866340621)*0.95 -> 0.5028898762
B187: Comp efficiency | D187: 0.55
B188: Efficiency W/W | D188: =D184/D186/D187 -> 237.415675 | E188: W/W
B189: Power comp | D189: =D188*D183 -> 702469.0784 | E189: kW
B190: Cost Barebone | D190: =2.6*(D183/1000)^0.68 -> 5.436676196 | F190: =1-SUM(F191:F195) -> 0.86 | G190: 2.6∗(Power)^0.68
B191: Test Tools | D191: =F191*$D$196 -> 0.0948257476 | E191: 1 | F191: 0.015
B192: Machine Monitoring System | D192: =F192*$D$196 -> 0.0948257476 | E192: 1 | F192: 0.015
B193: Heat Recovery System | D193: =F193*$D$196 -> 0 | E193: 1
B194: Test Tools | D194: =F194*$D$196 -> 0.5689544856 | E194: 1 | F194: 0.09
B195: Capital Spares | D195: =F195*$D$196 -> 0.1264343301 | E195: 1 | F195: 0.02
B196: Total Price | D196: =D190/F190 -> 6.321716507
B199: Qatar III
B201: Twarm reference | D201: 300 | H201: P = m*ΔH
B202: Tcold Reference | D202: 4.4 | H202: E = m(ΔH - TΔS)
B203: Equivalence [Watt]/ [Watt | D203: =+(D201-D202)/D202 -> 67.18181818 | H203: Peq@4,5K = E / 65,67
D205: Equivalent Power at 4,4K | E205: Tin [K] | F205: Tout [K] | G205: flow [g/s] | H205: Hin [J/g] | I205: Hout [J/g] | J205: ΔH | K205: Sin [J/g.K] | L205: Sout [J/g.K] | M205: ΔS | N205: TrefΔS | O205: Pin [bara] | P205: Pout [bara] | Q205: Exergy [Watt] | R205: Power [W] | T205: Tmoy | U205: Tbar
B206: Liquefaction | D206: =Q206/$D$203 -> 10104.90569 | E206: 4.5 | F206: 300 | G206: =128 -> 128 | H206: =[6]!h_(10,O206,E206) -> 31.52614058 | I206: =[6]!h_(10,P206,F206) -> 1573.579163 | J206: =I206-H206 -> 1542.053022 | K206: =[6]!S_(10,O206,E206) -> 8.414015724 | L206: =[6]!S_(10,P206,F206) -> 31.23299291 | M206: =L206-K206 -> 22.81897718 | N206: =M206*D201 -> 6845.693155 | O206: 1.2 | P206: 1.2 | Q206: =G206*((H206-I206)-$D$174*(K206-L206)) -> 678865.9369 | R206: =+(I206-H206)*G206 -> 197382.7869 | T206: =(F206-E206)/LN(F206/E206) -> 70.36208365 | U206: =T206*Q206/$Q$209 -> 70.36208365
B209: Total Power @4.5K | D209: =SUM(D206:D207) -> 10104.90569 | G209: =G206*3600*24/1000000 -> 11.0592 | Q209: =SUM(Q206:Q208) -> 678865.9369 | U209: =SUM(U206:U208) -> 70.36208365
B210: Carnot | D210: =(300-4.5)/4.5 -> 65.66666667
B211: Barycentrique Temp | D211: =U209 -> 70.36208365 | E211: K
B212: Efficiency | D212: =(-0.004132783*D211 + 0.5866340621)*0.95 -> 0.281050697
B213: Comp efficiency | D213: 0.5
B214: Efficiency W/W | D214: =D210/D212/D213 -> 467.2941029 | E214: W/W
B215: Power comp | D215: =D214*D209 -> 4721962.841 | E215: kW
B216: Cost Barebone | D216: =2.6*(D209/1000)^0.68 -> 12.53300716 | F216: =1-SUM(F217:F221) -> 0.98 | G216: 2.6∗(Power)^0.68
B221: Capital Spares | D221: =F221*$D$222 -> 0.2557756564 | E221: 1 | F221: 0.02
B222: Total Price | D222: =D216/F216 -> 12.78878282 | F222: WITH COMPRESSOR STATION ! AND WITHOUT DISTRIBUTION
B225: Qatar II
B227: Twarm reference | D227: 300 | H227: P = m*ΔH
B228: Tcold Reference | D228: 4.4 | H228: E = m(ΔH - TΔS)
B229: Equivalence [Watt]/ [Watt | D229: =+(D227-D228)/D228 -> 67.18181818 | H229: Peq@4,5K = E / 65,67
D231: Equivalent Power at 4,4K | E231: Tin [K] | F231: Tout [K] | G231: flow [g/s] | H231: Hin [J/g] | I231: Hout [J/g] | J231: ΔH | K231: Sin [J/g.K] | L231: Sout [J/g.K] | M231: ΔS | N231: TrefΔS | O231: Pin [bara] | P231: Pout [bara] | Q231: Exergy [Watt] | R231: Power [W] | T231: Tmoy | U231: Tbar
B232: Liquefaction | D232: =Q232/$D$203 -> 23112.27777 | E232: 4.5 | F232: 300 | G232: 231 | H232: =[6]!h_(10,O232,E232) -> 11.78063428 | I232: =[6]!h_(10,P232,F232) -> 1573.579163 | J232: =I232-H232 -> 1561.798529 | K232: =[6]!S_(10,O232,E232) -> 3.621155924 | L232: =[6]!S_(10,P232,F232) -> 31.23299291 | M232: =L232-K232 -> 27.61183698 | N232: =M232*D227 -> 8283.551095 | O232: 3 | P232: 1.2 | Q232: =G232*((H232-I232)-$D$227*(K232-L232)) -> 1552724.843 | R232: =+(I232-H232)*G232 -> 360775.4602 | T232: =(F232-E232)/LN(F232/E232) -> 70.36208365 | U232: =T232*Q232/$Q$235 -> 70.36208365
B235: Total Power @4.5K | D235: =SUM(D232:D233) -> 23112.27777 | G235: =G232*3600*24/1000000 -> 19.9584 | Q235: =SUM(Q232:Q234) -> 1552724.843 | U235: =SUM(U232:U234) -> 70.36208365
B236: Carnot | D236: =(300-4.5)/4.5 -> 65.66666667
B237: Barycentrique Temp | D237: =U235 -> 70.36208365 | E237: K
B238: Efficiency | D238: =(-0.004132783*D237 + 0.5866340621)*0.95 -> 0.281050697
B239: Comp efficiency | D239: 0.55 | K239: 886 | L239: 1.05 | M239: 4.8 | N239: =K239*8.314*315*LN(M239/L239)/4/0.5/1000 -> 1763.267081
B240: Efficiency W/W | D240: =D236/D238/D239 -> 424.8128209 | E240: W/W | K240: 4067 | L240: 4.8 | M240: 21 | N240: =K240*8.314*315*LN(M240/L240)/4/0.55/1000 -> 7145.471918
B241: Power comp | D241: =D240*D235 -> 9818391.915 | E241: kW | N241: =SUM(N239:N240) -> 8908.738999
B242: Cost Barebone | D242: =2.6*(D235/1000)^0.68 -> 21.99816306 | F242: =1-SUM(F243:F247) -> 0.98 | G242: 2.6∗(Power)^0.68
B243: Test Tools
B244: Machine Monitoring System
B245: Heat Recovery System
... 23 more rows

Sheet Property HePak
A1: HePak Spreadsheet Example
A2: Using HeCalc, HeProperty, HeUnit and HeInput
A3: Try new input values (shown in red)
C5: Thermodynamic state definition
C6: Input 1 | D6: Input 2 | E6: Validate
B7: Index | C7: 1 | D7: 2 | E7: =[7]!heProperty(Input2) -> 
B8: Name | C8: =[7]!heProperty(Input1) ->  | D8: =[7]!heProperty(Input2) -> 
B9: Value | C9: =1.2*10^5 -> 120000 | D9: 4.3 | E9: Unit System | F9: 1
B10: Units | C10: =[7]!heunit(Input1,Units) ->  | D10: =[7]!heunit(Input2,Units) -> 
B12: 2 | C12: Error Message
B13: 3
B15: Property | C15: Property | E15: Property
B16: Index | C16: Name | D16: Value | E16: Units
B17: 0 | C17: =[7]!heProperty(B17) ->  | D17: =[7]!Hecalc(B17,0,Input1,Value1,Input2,Value2,Units) ->  | E17: =[7]!heunit(B17,Units) ->  | H17: =D17 -> 
B18: 1 | C18: =[7]!heProperty(B18) ->  | D18: =[7]!Hecalc(B18,0,Input1,Value1,Input2,Value2,Units) ->  | E18: =[7]!heunit(B18,Units) -> 
B19: 2 | C19: =[7]!heProperty(B19) ->  | D19: =[7]!Hecalc(B19,0,Input1,Value1,Input2,Value2,Units) ->  | E19: =[7]!heunit(B19,Units) -> 
B20: 3 | C20: =[7]!heProperty(B20) ->  | D20: =[7]!Hecalc(B20,0,Input1,Value1,Input2,Value2,Units) ->  | E20: =[7]!heunit(B20,Units) -> 
B21: 4 | C21: =[7]!heProperty(B21) ->  | D21: =[7]!Hecalc(B21,0,Input1,Value1,Input2,Value2,Units) ->  | E21: =[7]!heunit(B21,Units) -> 
B22: 5 | C22: =[7]!heProperty(B22) ->  | D22: =[7]!Hecalc(B22,0,Input1,Value1,Input2,Value2,Units) ->  | E22: =[7]!heunit(B22,Units) -> 
B23: 6 | C23: =[7]!heProperty(B23) ->  | D23: =[7]!Hecalc(B23,0,Input1,Value1,Input2,Value2,Units) ->  | E23: =[7]!heunit(B23,Units) -> 
B24: 7 | C24: =[7]!heProperty(B24) ->  | D24: =[7]!Hecalc(B24,0,Input1,Value1,Input2,Value2,Units) ->  | E24: =[7]!heunit(B24,Units) -> 
B25: 8 | C25: =[7]!heProperty(B25) ->  | D25: =[7]!Hecalc(B25,0,Input1,Value1,Input2,Value2,Units) ->  | E25: =[7]!heunit(B25,Units) -> 
B26: 9 | C26: =[7]!heProperty(B26) ->  | D26: =[7]!Hecalc(B26,0,Input1,Value1,Input2,Value2,Units) ->  | E26: =[7]!heunit(B26,Units) ->  | I26: 9407.923752
B27: 10 | C27: =[7]!heProperty(B27) ->  | D27: =[7]!Hecalc(B27,0,Input1,Value1,Input2,Value2,Units) ->  | E27: =[7]!heunit(B27,Units) -> 
B28: 11 | C28: =[7]!heProperty(B28) ->  | D28: =[7]!Hecalc(B28,0,Input1,Value1,Input2,Value2,Units) ->  | E28: =[7]!heunit(B28,Units) -> 
B29: 12 | C29: =[7]!heProperty(B29) ->  | D29: =[7]!Hecalc(B29,0,Input1,Value1,Input2,Value2,Units) ->  | E29: =[7]!heunit(B29,Units) -> 
B30: 13 | C30: =[7]!heProperty(B30) ->  | D30: =[7]!Hecalc(B30,0,Input1,Value1,Input2,Value2,Units) -> 
B31: 14 | C31: =[7]!heProperty(B31) ->  | D31: =[7]!Hecalc(B31,0,Input1,Value1,Input2,Value2,Units) ->  | E31: =[7]!heunit(B31,Units) -> 
B32: 15 | C32: =[7]!heProperty(B32) ->  | D32: =[7]!Hecalc(B32,0,Input1,Value1,Input2,Value2,Units) ->  | E32: =[7]!heunit(B32,Units) -> 
B33: 16 | C33: =[7]!heProperty(B33) ->  | D33: =[7]!Hecalc(B33,0,Input1,Value1,Input2,Value2,Units) ->  | E33: =[7]!heunit(B33,Units) -> 
B34: 17 | C34: =[7]!heProperty(B34) ->  | D34: =[7]!Hecalc(B34,0,Input1,Value1,Input2,Value2,Units) ->  | E34: =[7]!heunit(B34,Units) -> 
B35: 18 | C35: =[7]!heProperty(B35) ->  | D35: =[7]!Hecalc(B35,0,Input1,Value1,Input2,Value2,Units) ->  | E35: =[7]!heunit(B35,Units) -> 
B36: 19 | C36: =[7]!heProperty(B36) ->  | D36: =[7]!Hecalc(B36,0,Input1,Value1,Input2,Value2,Units) ->  | E36: =[7]!heunit(B36,Units) ->  | I36: =[7]!Hecalc(19,0,1,Value1,2,Value2,1) -> 
B37: 20 | C37: =[7]!heProperty(B37) ->  | D37: =[7]!Hecalc(B37,0,Input1,Value1,Input2,Value2,Units) ->  | E37: =[7]!heunit(B37,Units) ->  | I37: =[7]!Hecalc(20,0,1,P,2,T,1) -> 
B38: 21 | C38: =[7]!heProperty(B38) ->  | D38: =[7]!Hecalc(B38,0,Input1,Value1,Input2,Value2,Units) ->  | E38: =[7]!heunit(B38,Units) -> 
B39: 22 | C39: =[7]!heProperty(B39) ->  | D39: =[7]!Hecalc(B39,0,Input1,Value1,Input2,Value2,Units) ->  | E39: =[7]!heunit(B39,Units) -> 
B40: 23 | C40: =[7]!heProperty(B40) ->  | D40: =[7]!Hecalc(B40,0,Input1,Value1,Input2,Value2,Units) ->  | E40: =[7]!heunit(B40,Units) -> 
B41: 24 | C41: =[7]!heProperty(B41) ->  | D41: =[7]!Hecalc(B41,0,Input1,Value1,Input2,Value2,Units) ->  | E41: =[7]!heunit(B41,Units) -> 
B42: 25 | C42: =[7]!heProperty(B42) ->  | D42: =[7]!Hecalc(B42,0,Input1,Value1,Input2,Value2,Units) ->  | E42: =[7]!heunit(B42,Units) -> 
B43: 26 | C43: =[7]!heProperty(B43) ->  | D43: =[7]!Hecalc(B43,0,Input1,Value1,Input2,Value2,Units) ->  | E43: =[7]!heunit(B43,Units) ->  | I43: =[6]!lambda_(11,1,300) -> 0.1877673509
B44: 27 | C44: =[7]!heProperty(B44) ->  | D44: =[7]!Hecalc(B44,0,Input1,Value1,Input2,Value2,Units) ->  | E44: =[7]!heunit(B44,Units) -> 
B45: 28 | C45: =[7]!heProperty(B45) ->  | D45: =[7]!Hecalc(B45,0,Input1,Value1,Input2,Value2,Units) ->  | E45: =[7]!heunit(B45,Units) -> 
B46: 29 | C46: =[7]!heProperty(B46) ->  | D46: =[7]!Hecalc(B46,0,Input1,Value1,Input2,Value2,Units) ->  | E46: =[7]!heunit(B46,Units) -> 
B47: 30 | C47: =[7]!heProperty(B47) ->  | D47: =[7]!Hecalc(B47,0,Input1,Value1,Input2,Value2,Units) ->  | E47: =[7]!heunit(B47,Units) -> 
B48: 31 | C48: =[7]!heProperty(B48) ->  | D48: =[7]!Hecalc(B48,0,Input1,Value1,Input2,Value2,Units) ->  | E48: =[7]!heunit(B48,Units) -> 
B49: 32 | C49: =[7]!heProperty(B49) ->  | D49: =[7]!Hecalc(B49,0,Input1,Value1,Input2,Value2,Units) ->  | E49: =[7]!heunit(B49,Units) -> 
B50: 33 | C50: =[7]!heProperty(B50) ->  | D50: =[7]!Hecalc(B50,0,Input1,Value1,Input2,Value2,Units) ->  | E50: =[7]!heunit(B50,Units) -> 
B51: 34 | C51: =[7]!heProperty(B51) ->  | D51: =[7]!Hecalc(B51,0,Input1,Value1,Input2,Value2,Units) ->  | E51: =[7]!heunit(B51,Units) -> 
B52: 35 | C52: =[7]!heProperty(B52) ->  | D52: =[7]!Hecalc(B52,0,Input1,Value1,Input2,Value2,Units) ->  | E52: =[7]!heunit(B52,Units) -> 
B53: 36 | C53: =[7]!heProperty(B53) ->  | D53: =[7]!Hecalc(B53,0,Input1,Value1,Input2,Value2,Units) ->  | E53: =[7]!heunit(B53,Units) -> 
B54: 37 | C54: =[7]!heProperty(B54) ->  | D54: =[7]!Hecalc(B54,0,Input1,Value1,Input2,Value2,Units) ->  | E54: =[7]!heunit(B54,Units) -> 
B55: 38 | C55: =[7]!heProperty(B55) ->  | D55: =[7]!Hecalc(B55,0,Input1,Value1,Input2,Value2,Units) ->  | E55: =[7]!heunit(B55,Units) -> 
B56: 39 | C56: =[7]!heProperty(B56) ->  | D56: =[7]!Hecalc(B56,0,Input1,Value1,Input2,Value2,Units) ->  | E56: =[7]!heunit(B56,Units) -> 
B57: 40 | C57: reserved
B58: 41 | C58: =[7]!heProperty(B58) ->  | D58: Input only | E58: N/A
B59: 42 | C59: =[7]!heProperty(B59) ->  | D59: Input only | E59: N/A
B60: 43 | C60: =[7]!heProperty(B60) ->  | D60: Input only | E60: N/A
B61: 44 | C61: =[7]!heProperty(B61) ->  | D61: Input only | E61: N/A

Sheet Fluides
C1: Liste des fluides disponibles
A2: 1 | B2: 1 | C2: Ammoniac | D2: C:\Program files\GaspakDemo5\NH379.gas | H2: 1
A3: 2 | B3: 2 | C3: Argon | D3: C:\Program files\GaspakDemo5\ARGON83.gas | H3: 2
A4: 3 | B4: 21 | C4: Azote | D4: C:\Program files\GaspakDemo5\N273.gas | H4: 21
A5: 4 | B5: 22 | C5: Azote | D5: C:\Program files\GaspakDemo5\N286.gas | H5: 22
A6: 5 | B6: 4 | C6: Butane Normal | D6: C:\Program files\GaspakDemo5\NORB86.gas | H6: 4
A7: 6 | B7: 7 | C7: Deutérium | D7: C:\Program files\GaspakDemo5\D286.gas | H7: 7
A8: 7 | B8: 5 | C8: Dioxide de carbone | D8: C:\Program files\GaspakDemo5\CO289.gas | H8: 5
A9: 8 | B9: 27 | C9: Eau | D9: C:\Program files\GaspakDemo5\H2O89.gas | H9: 27
A10: 9 | B10: 8 | C10: Ethane | D10: C:\Program files\GaspakDemo5\C2H686.gas | H10: 8
A11: 10 | B11: 9 | C11: Ethylène | D11: C:\Program files\GaspakDemo5\C2H481.gas | H11: 9
A12: 11 | B12: 10 | C12: Ethylène | D12: C:\Program files\GaspakDemo5\C2H486.gas | H12: 10
A13: 12 | B13: 11 | C13: Helium | D13: C:\Program files\GaspakDemo5\HE89.gas | H13: 11
A14: 13 | B14: 16 | C14: Hydrogen Sulfide | D14: C:\Program files\GaspakDemo5\H2S93.gas | H14: 16
A15: 14 | B15: 3 | C15: Isobutane | D15: C:\Program files\GaspakDemo5\ISOB86.gas | H15: 3
A16: 15 | B16: 17 | C16: Krypton | D16: C:\Program files\GaspakDemo5\KR90.gas | H16: 17
A17: 16 | B17: 18 | C17: Méthane | D17: C:\Program files\GaspakDemo5\METH86.gas | H17: 18
A18: 17 | B18: 19 | C18: Méthane | D18: C:\Program files\GaspakDemo5\CH489.gas | H18: 19
A19: 18 | B19: 6 | C19: Monoxide de carbone | D19: C:\Program files\GaspakDemo5\CO85.gas | H19: 6
A20: 19 | B20: 20 | C20: Néon | D20: C:\Program files\GaspakDemo5\NE91.gas | H20: 20
A21: 20 | B21: 23 | C21: Nitrogene Trifluoride | D21: C:\Program files\GaspakDemo5\NF380.gas | H21: 23
A22: 21 | B22: 13 | C22: Normal Hydrogene | D22: C:\Program files\GaspakDemo5\NH291.gas | H22: 13
A23: 22 | B23: 24 | C23: Oxygène | D23: C:\Program files\GaspakDemo5\O278.gas | H23: 24
A24: 23 | B24: 25 | C24: Oxygène | D24: C:\Program files\GaspakDemo5\O285.gas | H24: 25
A25: 24 | B25: 15 | C25: Hydrogène Para | D25: C:\Program files\GaspakDemo5\PH275.gas | H25: 15
A26: 25 | B26: 26 | C26: Propane | D26: C:\Program files\GaspakDemo5\C3H886.gas | H26: 26
A27: 26 | B27: 29 | C27: R11 | D27: C:\Program files\GaspakDemo5\R1191.gas | H27: 29
A28: 27 | B28: 30 | C28: R12 | D28: C:\Program files\GaspakDemo5\R1291.gas | H28: 30
A29: 28 | B29: 33 | C29: R123 | D29: C:\Program files\GaspakDemo5\R123N93.gas | H29: 33
A30: 29 | B30: 34 | C30: R124 | D30: C:\Program files\GaspakDemo5\R124N93.gas | H30: 34
A31: 30 | B31: 35 | C31: R125 | D31: C:\Program files\GaspakDemo5\R125N93.gas | H31: 35
A32: 31 | B32: 36 | C32: R134 | D32: C:\Program files\GaspakDemo5\R134AN92.gas | H32: 36
A33: 32 | B33: 37 | C33: R134 | D33: C:\Program files\GaspakDemo5\R134AT93.gas | H33: 37
A34: 33 | B34: 38 | C34: R152 | D34: C:\Program files\GaspakDemo5\R152AT94.gas | H34: 38
A35: 34 | B35: 31 | C35: R22 | D35: C:\Program files\GaspakDemo5\R2291.gas | H35: 31
A36: 35 | B36: 32 | C36: R32 | D36: C:\Program files\GaspakDemo5\R32N93.gas | H36: 32
A37: 36 | B37: 50 | C37: R32 | D37: C:\Program files\GaspakDemo5\R32N94.gas | H37: 50
A38: 37 | B38: 28 | C38: Xénon | D38: C:\Program files\GaspakDemo5\\XE90.gas | H38: 28
A39: 38 | B39: Phosphine | C39: 1.45 | D39: 10.6
A40: 39 | B40: Protoxyde d'azote | C40: 1.872 | D40: 13.6
A41: 40 | B41: R11 gaz | C41: 6.2 | D41: 10.16
A42: 41 | B42: R12 gaz | C42: 5.75 | D42: 11.99
A43: 42 | B43: R22 gaz | C43: 4.23 | D43: 11.8
A44: 43 | B44: Silane | C44: 1.36 | D44: 10.8
A45: 44 | B45: Sulfure d'hydrogène | C45: 1.45 | D45: 11.79
A46: 45 | B46: R11 liq | C46: 1500 | D46: 567.5
A47: 46 | B47: R12 liq | C47: 1350 | D47: 260
A48: 47 | B48: R22 liq | C48: 1250 | D48: 210
A49: 48 | B49: R32 liq | C49: 1000 | D49: 193.2
A50: 49 | B50: R123 liq | C50: 1500 | D50: 569.6
A51: 50 | B51: R124 liq | C51: 1400 | D51: 346
A52: 51 | B52: R125 liq | C52: 1250 | D52: 205
A53: 52 | B53: R152a liq | C53: 950 | D53: 214

Sheet Pipe diameter
A2: I/ PN10
C4: Service limit | H4: Design data*
B5: Pressure (Bar) | C5: 10 | D5: 10 | E5: 10 | F5: 10 | G5: Vacuum | H5: 10 | I5: Vacuum
B6: Temperature (°C) | C6: -273 | D6: 38 | E6: 50 | F6: 100 | G6: 20 | H6: 100 | I6: 100
B9: Diam | C9: DN | D9: D out | E9: Ep | F9: D in
B10: 3/8" | C10: 10 | D10: 17.2 | E10: 1.6 | F10: =D10-2*E10 -> 14
B11: 1/2" | C11: 15 | D11: 21.3 | E11: 1.6 | F11: 18.1
B12: 3/4" | C12: 20 | D12: 26.9 | E12: 1.6 | F12: 23.7
B13: 1" | C13: 25 | D13: 33.7 | E13: 1.6 | F13: 30.5
B14: 1"1/4 | C14: 32 | D14: 42.4 | E14: 1.6 | F14: 39.2
B15: 1"1/2 | C15: 40 | D15: 48.3 | E15: 1.6 | F15: 45.1
B16: 2" | C16: 50 | D16: 60.3 | E16: 2 | F16: 56.3
B17: 2"1/2 | C17: 65 | D17: 76.1 | E17: 2.9 | F17: 70.3
B18: 3" | C18: 80 | D18: 86.9 | E18: 3.05 | F18: 80.8
B19: 4" | C19: 100 | D19: 114.3 | E19: 6.02 | F19: 102.26
B20: 6" | C20: 150 | D20: 168.3 | E20: 7.11 | F20: 154.08
B21: 8" | C21: 200 | D21: 219.1 | E21: 8.18 | F21: 202.74
B22: 10" | C22: 250 | D22: 273 | E22: 9.27 | F22: 254.46
B23: 12" | C23: 300 | D23: 323.9 | E23: 9.53 | F23: 304.84
A25: II/ PN27
C27: Service limit | H27: Design data*
B28: Pressure (Bar) | C28: 27 | D28: 27 | E28: 27 | F28: 27 | G28: Vacuum | H28: 27 | I28: Vacuum
B29: Temperature (°C) | C29: -273 | D29: 38 | E29: 50 | F29: 100 | G29: 20 | H29: 100 | I29: 100
B32: Diam | C32: DN | D32: D out | E32: Ep | F32: D in
B33: 3/8" | C33: 10 | D33: 17.2 | E33: 1.6 | F33: =D33-2*E33 -> 14
B34: 1/2" | C34: 15 | D34: 21.3 | E34: 1.6 | F34: 18.1
B35: 3/4" | C35: 20 | D35: 26.9 | E35: 1.6 | F35: 23.7
B36: 1" | C36: 25 | D36: 33.7 | E36: 1.6 | F36: 30.5
B37: 1"1/4 | C37: 32 | D37: 42.4 | E37: 1.6 | F37: 39.2
B38: 1"1/2 | C38: 40 | D38: 48.3 | E38: 1.6 | F38: 45.1
B39: 2" | C39: 50 | D39: 60.3 | E39: 1.6 | F39: 57.1
B40: 2"1/2 | C40: 65 | D40: 76.1 | E40: 1.6 | F40: 72.9
B41: 3" | C41: 80 | D41: 86.9 | E41: 1.6 | F41: 83.7
B42: 4" | C42: 100 | D42: 114.3 | E42: 2 | F42: 110.3
B43: 6" | C43: 150 | D43: 168.3 | E43: 3.4 | F43: 161.5
B44: 8" | C44: 200 | D44: 219.1 | E44: 3.76 | F44: 211.58
B45: 10" | C45: 250 | D45: 273 | E45: 4.19 | F45: 264.62
B46: 12" | C46: 300 | D46: 323.9 | E46: 4.57 | F46: 314.76
A49: III/ Nombre de coudes
B51: 0
B52: 1
B53: 2
B54: 3
B55: 4
B56: 5

Sheet Sheet2
E6: Cycles | F6: Caractéristiques | G6: Puissance équivalente calculée en cas design à 4,5K | H6: Tmoy | I6: Puissance compresseurs nécessaire si idéaux | L6: Rdt cycle en W/W@4,5K (compresseurs isoT) | M6: Rendement de Carnot | N6: Puissance compresseurs non idéaux (mode design) | O6: Rdt cycle en W/W@4,5K (mode design avec compresseurs non idéaux) | P6: Puissance compresseurs réelle (mesurée) | Q6: Puissance compresseurs réelle (mesurée) | R6: Rdt cycle en W/W@4,5K | S6: Sources | T6: Remarques
E7: SKIKDA | F7: Liquéfacteur à 3 niveaux de pression : 1.06, 3.8, 20.5 bar. Avec LN2. 5 turbines. Production de 116,3 g/s de LHe. | G7: 9.2 | I7: 1523 | J7: =(300-4.5)/4.5*G7/M7 ->  | K7: =J7/55% ->  | L7: 179 (avec N2 à 1W/W) / 235 (avec N2 à 5W/W) | M7: 37,9%(avec N2 à 1W/W) / 28,8%(avec N2 à 5W/W) | S7: Calcul process : SKIKDA.HSC ; Calcul de rdt : Efficiency_SKIKDA_LINDE.xls
E8: JT 60 3T | F8: Cycle à 3 niveaux de pression : 1.05, 4.45, 18.6 bar. Avec LN2. 3 turbines. | G8: 10.6 | I8: 1174 | J8: =(300-4.5)/4.5*G8/M8 ->  | L8: 119 (avec N2 à 1W/W) / 154 (avec N2 à 5W/W) | M8: 56,3%(avec N2 à 1W/W) / 43,7%(avec N2 à 5W/W) | S8: Calcul process : JT60 POS - MAX POWER NIV. CST 4,3K- 18BARS (DESIGN).HSC ; Calcul de rdt : Efficiency_JT60_3T.xls
E9: JT 60 6T | F9: Cycle à 3 niveaux de pression : 1.05, 4.80, 22.0 bar. Pas de N2. 6 turbines. | G9: 10.7 | I9: 1506 | J9: =(300-4.5)/4.5*G9/M9 ->  | L9: 141 | M9: 46,2% | S9: Calcul process : JT60 POS - MAX POWER NIV. CST 4,3K - 22BARS (DESIGN).HSC ; Calcul de rdt: Efficiency_JT60_6T.xls
E10: ITER | F10: Cycle à 3 niveaux de pressions : 1.0, 4.2, 16.8 bar. Avec LN2. 4 turbines. Production de LHe selon régime de fonctionnement | G10: 26.9 | I10: 3224 | J10: =(300-4.5)/4.5*G10/M10 ->  | L10: 120 (avec N2 à 1W/W) / 155 (avec N2 à 8W/W) | M10: 57,2%(avec N2 à 1W/W) / 44,3%(avec N2 à 8W/W) | N10: 5942 kW avec un rdt de 52% | O10: 261 (avec N2 à 8W/W) | S10: Calcul process : MAGNETS HTS REFRIGERATOR 4 TURBINES (4) mean load .HSC ; Calcul de rdt : Efficiency-meanload.xls | T10: Calculé en mode charge moyenne. L'azote est considéré avoir un rdt de 8 W/W.
E11: KSTAR | F11: Cycle à 3 niveaux de pressions : 1.0, 5, 22 bar. Pas de N2. 6 turbines. Production de 18 g/s de LHe | G11: 9.6 | I11: 1498 | J11: =(300-4.5)/4.5*G11/M11 ->  | L11: 156 | M11: 43,4% | N11: 2492 kW avec un rdt de 54% au 1er étage et 64% au second | O11: 260 | P11: 2567 kW avec un rdt de 49% au 1er étage et 65% au second | Q11: =L11/R11 -> 0.5820895522 | R11: 268 | S11: Calcul process : C1119 SH 011- AVEC_VANNE.HSC ; Calcul de rdt : Efficiency_KSTAR.xls ; Mesures : C1119-TR-118 (0).pdf | T11: Calculé en mode design. Le compresseur froid n'est pas pris en compte dans la puissance utile.
E12: LEP 6 kW AL | F12: Cycle à 3 niveaux de pression : 1, 5.80,19.4 bar. 5 compresseurs (Stal (Suède)). Pas de N2. 3 Turbines. Production de 8 g/s de LHe. | G12: 6.3 | I12: 895 | J12: =(300-4.5)/4.5*G12/M12 ->  | L12: 143 | M12: 45,9% | P12: 1790 kW avec un rdt global de 50% sur la station de compression | Q12: =L12/R12 -> 0.5 | R12: 286 | S12: Calcul process : CERN-6KW- DesignOriginal.HSC ; Calcul de rdt : Efficiency-design_original.xls | T12: Calculé en mode design original. Info sur les compresseurs dans Advances in cryogenic engineering volume 39 p.548
E13: LEP 6 kW LINDE | F13: Cycle à 3 niveaux de pression : 1.01, 4, 19 bar. 3 compresseurs (Stal (Suède)). Pas de N2. 7 turbines. Production de 8 g/s de LHe. | G13: 6.1 | I13: 765 | K13: =J13/M13 ->  | L13: 126 | M13: 53,5% | P13: 1395/1459 kW avec un rdt global de 54,8/52,4% sur la station de compression | Q13: 0.547826087 | R13: 230 | S13: Calcul process : LINDE_LEP_6KW ; Calcul de rdt : Efficiency_LEP6kW-LINDE.xls | T13: Calculé en mode design. Info sur les compresseurs dans Advances in cryogenic engineering volume 39 p.554
E14: LEP 12 kW AL | F14: Cycle à 3 niveaux de pression : 1.04, 4.30, 17.56 bar. 4+1 compresseurs (Stal (Suède)). Pas de N2. 7 turbines. 13g/s de LHe | G14: 11.9 | I14: 1397 | K14: =J14/M14 ->  | L14: 115 | M14: 58,5% | P14: 2765 kW avec un rdt de 50,5% sur la station de compression | Q14: 0.4956896552 | R14: 232 | S14: Calcul process : AL_LEP_12KW.HSC ; Calcul de rdt : Efficiency_LEP12kW.xls
E15: LEP 12 kW LINDE | F15: Cycle à 3 niveaux de pression : 1.01, 4.20, 20,13 bar. 3+2 compresseurs (Stal (Suède)). Pas de N2. 7 turbines. 13g/s de LHe | G15: 11.9 | I15: 1385 | L15: 116 | M15: 57,6% | P15: 2603 kW avec un rdt global de 53,2% sur la station de compresssion | Q15: 0.5321100917 | R15: 218 | S15: Calcul process : LINDE_LEP_12KW.HSC ; Calcul de rdt : Efficiency_LEP12kW- LINDE.xls
E16: LEP 18 kW | F16: Cycle à 3 niveaux de pression : 1.0, 4.4, 20.2 bar. Pas des N2. 6 Turbines. | G16: 19.5 | I16: 2779 | L16: 142 | M16: 45,5% | S16: Calcul process : LEP-LHC(3) SANS T08_modifié.HSC ; Calcul de rdt : Efficiency-LEP-LHC(3) SANS T08.xls | T16: Calculé sans turbines 3 et 8.
E17: LHC 18 kW AL | F17: Cycle à 3 niveaux de pression : 1.0, 3.9, 20.5 bar. Pas des N2. 8 Turbines. | G17: 17.9 | I17: 2311 | L17: 129 | M17: 50,9% | P17: 4129kW avec un rdt global de la station de 56,0% | Q17: 0.5608695652 | R17: 230 | S17: Calcul process : 980605IN.HSC ; Calcul de rdt : Efficiency-LHC.xls
E18: LHC 18 kW LINDE | F18: Cycle à 3 niveaux de pression : 1.01, 4.1, 21.6 bar. Pas de N2. 10 turbines. | G18: 18.3 | I18: 2446 | L18: 134 | M18: 49,0% | P18: 4381 kW avec un rdt global de la station de 55,8% | Q18: 0.5583333333 | R18: 240 | S18: Calcul process : LHC-LINDE.HSC ; Calcul de rdt : Efficiency_LHC- LINDE.xls | T18: Le débit au niveau des 3 étages turbines a été choisi de telle sorte que les échangeurs aient des pertes thermiques cohérentes
E19: QATAR | F19: Liquéfacteur à 3 niveaux de pression : 1.07, 4.0, 20.6 bar. Pas de N2. 6 turbines. Production de 116,6 g/s de LHe. | G19: 9 | I19: 2087 | K19: =J19/55% ->  | L19: 231 | M19: 28,4% | S19: Calcul process : QATAR.HSC ; Calcul de rdt : Efficiency_QATAR.xls
E20: Rhéa | F20: Liquéfacteur à 3 niveaux de pression : 1.08, 4.0, 21.1 bar. Pas de N2. 6 turbines. Production de 238,5 g/s de LHe. | G20: 21.8 | I20: 4573 | K20: =J20/55% ->  | L20: 210 | M20: 33,0% | S20: Calcul process : RHEA - DESIGN - EX8 2.1.2 - SANS LN2(4).HSC ; Calcul de rdt : Efficiency_Rhea_design.xls
G24: =68*210*9.2 -> 131376

Sheet Sheet2 (2)
E6: Cycles | F6: Caractéristiques | G6: Puissance équivalente calculée en cas design à 4,5K | H6: Tmoy | I6: Puissance compresseurs nécessaire si idéaux | L6: Rdt cycle en W/W@4,5K (compresseurs isoT) | M6: Rendement de Carnot | N6: Puissance compresseurs non idéaux (mode design) | O6: Rdt cycle en W/W@4,5K (mode design avec compresseurs non idéaux) | P6: Puissance compresseurs réelle (mesurée) | Q6: Puissance compresseurs réelle (mesurée) | R6: Rdt cycle en W/W@4,5K | T6: Sources | U6: Remarques
E7: SKIKDA | F7: Liquéfacteur à 3 niveaux de pression : 1.06, 3.8, 20.5 bar. Avec LN2. 5 turbines. Production de 116,3 g/s de LHe. | G7: 9.2 | H7: 69 | I7: 1523 | J7: =(300-4.5)/4.5*G7/M7 -> 2097.685185 | K7: =J7/55% -> 3813.973064 | L7: 179 (avec N2 à 1W/W) / 235 (avec N2 à 5W/W) | M7: 0.288 | R7: 111111 | S7: =(300-4.5)/4.5/R7 -> 0.000591000591 | T7: Calcul process : SKIKDA.HSC ; Calcul de rdt : Efficiency_SKIKDA_LINDE.xls
E8: JT 60 3T | F8: Cycle à 3 niveaux de pression : 1.05, 4.45, 18.6 bar. Avec LN2. 3 turbines. | G8: 10.6 | H8: 36 | I8: 1174 | J8: =(300-4.5)/4.5*G8/M8 -> 1592.829901 | K8: 2896.054365 | L8: 119 (avec N2 à 1W/W) / 154 (avec N2 à 5W/W) | M8: 0.437 | R8: 111111111 | S8: 5.910000006e-07 | T8: Calcul process : JT60 POS - MAX POWER NIV. CST 4,3K- 18BARS (DESIGN).HSC ; Calcul de rdt : Efficiency_JT60_3T.xls
E9: JT 60 6T | F9: Cycle à 3 niveaux de pression : 1.05, 4.80, 22.0 bar. Pas de N2. 6 turbines. | G9: 10.7 | H9: 36 | I9: 1506 | J9: =(300-4.5)/4.5*G9/M9 -> 1520.851371 | K9: 2765.184311 | L9: 141 | M9: 0.462 | R9: 111111111111 | S9: 5.91e-10 | T9: Calcul process : JT60 POS - MAX POWER NIV. CST 4,3K - 22BARS (DESIGN).HSC ; Calcul de rdt: Efficiency_JT60_6T.xls
E10: ITER | F10: Cycle à 3 niveaux de pressions : 1.0, 4.2, 16.8 bar. Avec LN2. 4 turbines. Production de LHe selon régime de fonctionnement | G10: 26.9 | H10: 29 | I10: 3224 | J10: =(300-4.5)/4.5*G10/M10 -> 3987.434161 | K10: 7249.880293 | L10: 120 (avec N2 à 1W/W) / 155 (avec N2 à 8W/W) | M10: 0.443 | N10: 5942 kW avec un rdt de 52% | O10: 261 (avec N2 à 8W/W) | R10: 1111111111 | S10: 5.910000001e-08 | T10: Calcul process : MAGNETS HTS REFRIGERATOR 4 TURBINES (4) mean load .HSC ; Calcul de rdt : Efficiency-meanload.xls | U10: Calculé en mode charge moyenne. L'azote est considéré avoir un rdt de 8 W/W.
E11: KSTAR | F11: Cycle à 3 niveaux de pressions : 1.0, 5, 22 bar. Pas de N2. 6 turbines. Production de 18 g/s de LHe | G11: 9.6 | H11: 28 | I11: 1498 | J11: =(300-4.5)/4.5*G11/M11 -> 1452.534562 | K11: 2640.971931 | L11: 156 | M11: 0.434 | N11: 2492 kW avec un rdt de 54% au 1er étage et 64% au second | O11: 260 | P11: 2567 kW avec un rdt de 49% au 1er étage et 65% au second | Q11: =L11/R11 -> 0.5820895522 | R11: 268 | S11: 0.2450248756 | T11: Calcul process : C1119 SH 011- AVEC_VANNE.HSC ; Calcul de rdt : Efficiency_KSTAR.xls ; Mesures : C1119-TR-118 (0).pdf | U11: Calculé en mode design. Le compresseur froid n'est pas pris en compte dans la puissance utile.
E12: LEP 6 kW AL | F12: Cycle à 3 niveaux de pression : 1, 5.80,19.4 bar. 5 compresseurs (Stal (Suède)). Pas de N2. 3 Turbines. Production de 8 g/s de LHe. | G12: 6.3 | H12: 16 | I12: 895 | J12: =(300-4.5)/4.5*G12/M12 -> 901.3071895 | K12: 1638.740345 | L12: 143 | M12: 0.459 | P12: 1790 kW avec un rdt global de 50% sur la station de compression | Q12: 0.5 | R12: 286 | S12: 0.2296037296 | T12: Calcul process : CERN-6KW- DesignOriginal.HSC ; Calcul de rdt : Efficiency-design_original.xls | U12: Calculé en mode design original. Info sur les compresseurs dans Advances in cryogenic engineering volume 39 p.548
E13: LEP 6 kW LINDE | F13: Cycle à 3 niveaux de pression : 1.01, 4, 19 bar. 3 compresseurs (Stal (Suède)). Pas de N2. 7 turbines. Production de 8 g/s de LHe. | G13: 6.1 | H13: 15 | I13: 765 | J13: 748.7227414 | K13: =J13/M13 -> 1399.48176 | L13: 126 | M13: 0.535 | P13: 1395/1459 kW avec un rdt global de 54,8/52,4% sur la station de compression | Q13: 0.547826087 | R13: 230 | S13: =(300-4.5)/4.5/R13 -> 0.2855072464 | T13: Calcul process : LINDE_LEP_6KW ; Calcul de rdt : Efficiency_LEP6kW-LINDE.xls | U13: Calculé en mode design. Info sur les compresseurs dans Advances in cryogenic engineering volume 39 p.554
E14: LEP 12 kW AL | F14: Cycle à 3 niveaux de pression : 1.04, 4.30, 17.56 bar. 4+1 compresseurs (Stal (Suède)). Pas de N2. 7 turbines. 13g/s de LHe | G14: 11.9 | H14: 13.5 | I14: 1397 | J14: 1335.783476 | K14: =J14/M14 -> 2283.390557 | L14: 115 | M14: 0.585 | P14: 2765 kW avec un rdt de 50,5% sur la station de compression | Q14: 0.4956896552 | R14: 232 | S14: 0.283045977 | T14: Calcul process : AL_LEP_12KW.HSC ; Calcul de rdt : Efficiency_LEP12kW.xls
E15: LEP 12 kW LINDE | F15: Cycle à 3 niveaux de pression : 1.01, 4.20, 20,13 bar. 3+2 compresseurs (Stal (Suède)). Pas de N2. 7 turbines. 13g/s de LHe | G15: 11.9 | H15: 13.6 | I15: 1385 | J15: 1356.655093 | K15: 2466.645623 | L15: 116 | M15: 0.576 | P15: 2603 kW avec un rdt global de 53,2% sur la station de compresssion | Q15: 0.5321100917 | R15: 218 | S15: 0.3012232416 | T15: Calcul process : LINDE_LEP_12KW.HSC ; Calcul de rdt : Efficiency_LEP12kW- LINDE.xls
E16: LEP 18 kW | F16: Cycle à 3 niveaux de pression : 1.0, 4.4, 20.2 bar. Pas des N2. 6 Turbines. | G16: 19.5 | H16: 19.8 | I16: 2779 | J16: 2814.285714 | K16: 5116.883117 | L16: 142 | M16: 0.455 | Q16: 1.278e-09 | R16: 111111111111 | S16: 5.91e-10 | T16: Calcul process : LEP-LHC(3) SANS T08_modifié.HSC ; Calcul de rdt : Efficiency-LEP-LHC(3) SANS T08.xls | U16: Calculé sans turbines 3 et 8.
E17: LHC 18 kW AL | F17: Cycle à 3 niveaux de pression : 1.0, 3.9, 20.5 bar. Pas des N2. 8 Turbines. | G17: 17.9 | H17: 24.5 | I17: 2311 | J17: 2309.29928 | K17: 4198.725963 | L17: 129 | M17: 0.509 | P17: 4129kW avec un rdt global de la station de 56,0% | Q17: 0.5608695652 | R17: 230 | S17: 0.2855072464 | T17: Calcul process : 980605IN.HSC ; Calcul de rdt : Efficiency-LHC.xls
E18: LHC 18 kW LINDE | F18: Cycle à 3 niveaux de pression : 1.01, 4.1, 21.6 bar. Pas de N2. 10 turbines. | G18: 18.3 | H18: 25 | I18: 2446 | J18: 2452.44898 | K18: 4458.998145 | L18: 134 | M18: 0.49 | P18: 4381 kW avec un rdt global de la station de 55,8% | Q18: 0.5583333333 | R18: 240 | S18: 0.2736111111 | T18: Calcul process : LHC-LINDE.HSC ; Calcul de rdt : Efficiency_LHC- LINDE.xls | U18: Le débit au niveau des 3 étages turbines a été choisi de telle sorte que les échangeurs aient des pertes thermiques cohérentes
E19: QATAR | F19: Liquéfacteur à 3 niveaux de pression : 1.07, 4.0, 20.6 bar. Pas de N2. 6 turbines. Production de 116,6 g/s de LHe. | G19: 9 | H19: 70.3 | I19: 2087 | J19: 2080.985915 | K19: 3783.610755 | L19: 231 | M19: 0.284 | Q19: 2.079000002e-06 | R19: 111111111 | S19: 5.910000006e-07 | T19: Calcul process : QATAR.HSC ; Calcul de rdt : Efficiency_QATAR.xls
E20: Rhéa | F20: Liquéfacteur à 3 niveaux de pression : 1.08, 4.0, 21.1 bar. Pas de N2. 6 turbines. Production de 238,5 g/s de LHe. | G20: 21.8 | H20: 70.3 | I20: 4573 | J20: 4337.979798 | K20: 7887.235996 | L20: 210 | M20: 0.33 | Q20: 1.890000019e-05 | R20: 11111111 | S20: 5.910000059e-06 | T20: Calcul process : RHEA - DESIGN - EX8 2.1.2 - SANS LN2(4).HSC ; Calcul de rdt : Efficiency_Rhea_design.xls
G24: =68*210*9.2 -> 131376
G40: Power | H40: Tmoy | I40: Eff | J40: Rendement de Carnot
F41: SKIKDA | G41: 9.2 | H41: 69 | I41: 0.288
F42: KSTAR | G42: 9.6 | H42: 28 | I42: 0.434
F43: LEP 6 kW AL | G43: 6.3 | H43: 16 | I43: 0.459
F44: LEP 6 kW LINDE | G44: 6.1 | H44: 15 | I44: 0.535
F45: LEP 12 kW AL | G45: 11.9 | H45: 13.5 | I45: 0.585
F46: LEP 12 kW LINDE | G46: 11.9 | H46: 13.6 | I46: 0.576
F47: LEP 18 kW | G47: 19.5 | H47: 19.8 | I47: 0.455
F48: LHC 18 kW AL | G48: 17.9 | H48: 24.5 | I48: 0.509
F49: LHC 18 kW LINDE | G49: 18.3 | H49: 25 | I49: 0.49
F50: QATAR | G50: 9 | H50: 70.3 | I50: 0.284
F51: Rhéa | G51: 21.8 | H51: 70.3 | I51: 0.33
